[Event "16th EWICC 2015"]
[Site "Kutaisi"]
[Date "2015.06.03"]
[Round "9"]
[White "Khmiadashvili, Tamar"]
[Black "Zaksaite, Salomeja"]
[Result "1/2-1/2"]
[ECO "A45"]
[WhiteElo "2043"]
[BlackElo "2203"]
[Annotator "Robot 11"]
[PlyCount "288"]
[EventDate "2015.??.??"]
[EventCountry "GEO"]
[TimeControl "900+10"]

1. d4 {[%emt 0:00:04]} Nf6 {[%emt 0:00:01]} 2. c3 {[%emt 0:00:06]} d5 {[%emt 0:
00:08]} 3. Nf3 {[%emt 0:00:07]} g6 {[%emt 0:00:15]} 4. g3 {[%emt 0:00:08]} Bg7
{[%emt 0:00:01]} 5. Bg2 {[%emt 0:00:01]} O-O {[%emt 0:00:05]} 6. O-O {[%emt 0:
00:07]} c5 {[%emt 0:01:33]} 7. Bf4 {[%emt 0:00:51]} Nc6 {[%emt 0:00:04]} 8. Be5
{[%emt 0:00:10]} Nxe5 {[%emt 0:00:22]} 9. Nxe5 {[%emt 0:00:10]} Qc7 {[%emt 0:
01:24]} 10. e3 {[%emt 0:00:09]} Be6 {[%emt 0:00:10]} 11. Nd2 {[%emt 0:00:14]}
Rfd8 {[%emt 0:00:50]} 12. a4 {[%emt 0:00:19]} b6 {[%emt 0:00:50]} 13. a5 {
[%emt 0:00:27]} b5 {[%emt 0:02:05]} 14. Nb3 {[%emt 0:00:21]} c4 {[%emt 0:02:42]
} 15. Nc5 {[%emt 0:00:05]} Rac8 {[%emt 0:01:03]} 16. Qe2 {[%emt 0:01:12]} Qb8 {
[%emt 0:00:02]} 17. Na6 {[%emt 0:00:13]} Qd6 {[%emt 0:00:25]} 18. Nb4 {[%emt 0:
00:03]} Ne8 {[%emt 0:00:18]} 19. f4 {[%emt 0:00:14]} f6 {[%emt 0:00:07]} 20.
Nf3 {[%emt 0:00:05]} Bf7 {[%emt 0:00:50]} 21. Nd2 {[%emt 0:01:17]} e5 {[%emt 0:
00:28]} 22. fxe5 {[%emt 0:01:02]} fxe5 {[%emt 0:00:01]} 23. Nf3 {[%emt 0:00:11]
} Nc7 {[%emt 0:00:49]} 24. Ng5 {[%emt 0:00:13]} Be6 {[%emt 0:00:08]} 25. Nxe6 {
[%emt 0:00:12]} Qxe6 {[%emt 0:00:03]} 26. dxe5 {[%emt 0:00:38]} Bxe5 {[%emt 0:
00:08]} 27. Rfe1 {[%emt 0:00:21]} Re8 {[%emt 0:00:30]} 28. Qd2 {[%emt 0:00:50]}
Rcd8 {[%emt 0:00:08]} 29. Rad1 {[%emt 0:00:16]} Kh8 {[%emt 0:00:12]} 30. Nc2 {
[%emt 0:01:09]} Bg7 {[%emt 0:01:14]} 31. e4 {[%emt 0:00:29]} Qa6 {[%emt 0:00:
32]} 32. exd5 {[%emt 0:00:19]} Rxe1+ {[%emt 0:00:08]} 33. Rxe1 {[%emt 0:00:24]}
Qxa5 {[%emt 0:00:07]} 34. Nb4 {[%emt 0:01:23]} Qb6+ {[%emt 0:00:02]} 35. Qe3 {
[%emt 0:00:27]} Qxe3+ {[%emt 0:00:48]} 36. Rxe3 {[%emt 0:00:01]} Bf8 {[%emt 0:
00:00]} 37. Nc6 {[%emt 0:00:42]} Nxd5 {[%emt 0:01:41]} 38. Re5 {[%emt 0:01:46]}
Bc5+ {[%emt 0:00:38]} 39. Kh1 {[%emt 0:00:01]} Rf8 {[%emt 0:00:26]} 40. Bxd5 {
[%emt 0:00:03]} Rf1+ {[%emt 0:00:04]} 41. Kg2 {[%emt 0:00:01]} Rf2+ {[%emt 0:
00:01]} 42. Kh3 {[%emt 0:00:04]} Rxb2 {[%emt 0:00:01]} 43. Bxc4 {[%emt 0:01:13]
} Bg1 {[%emt 0:00:06]} 44. Rxb5 {[%emt 0:00:30]} Rxh2+ {[%emt 0:00:02]} 45. Kg4
{[%emt 0:00:01]} Rc2 {[%emt 0:00:08]} 46. Rb8+ {[%emt 0:00:16]} Kg7 {[%emt 0:
00:01]} 47. Ne5 {[%emt 0:00:30]} Rxc3 48. Bd5 {[%emt 0:00:46]} Kf6 {[%emt 0:00:
34]} 49. Nf3 {[%emt 0:00:52]} h5+ {[%emt 0:00:15]} 50. Kh3 {[%emt 0:00:02]} Bb6
{[%emt 0:00:13]} 51. Rf8+ {[%emt 0:00:10]} Kg7 {[%emt 0:00:26]} 52. Rf7+ {
[%emt 0:00:04]} Kh6 {[%emt 0:00:04]} 53. Rf6 {[%emt 0:00:19]} Kg7 {[%emt 0:00:
12]} 54. Rc6 {[%emt 0:00:12]} Rd3 {[%emt 0:00:09]} 55. Rd6 {[%emt 0:00:16]} Bc5
{[%emt 0:00:22]} 56. Rd7+ {[%emt 0:00:07]} Kh6 {[%emt 0:00:06]} 57. Bc6 {[%emt
0:00:14]} Rxd7 {[%emt 0:00:11]} 58. Bxd7 {[%emt 0:00:03]} g5 {[%emt 0:00:00]}
59. Nd2 {[%emt 0:00:24]} Bd6 {[%emt 0:00:14]} 60. Ne4 {[%emt 0:00:07]} Be5 {
[%emt 0:00:04]} 61. Kg2 {[%emt 0:00:11]} a5 {[%emt 0:00:05]} 62. Ba4 {[%emt 0:
00:18]} g4 {[%emt 0:00:11]} 63. Be8 {[%emt 0:00:15]} Bc7 {[%emt 0:00:07]} 64.
Bd7 {[%emt 0:00:29]} Bd8 {[%emt 0:00:13]} 65. Kf2 {[%emt 0:00:19]} h4 {[%emt 0:
00:03]} 66. Bxg4 {[%emt 0:00:08]} hxg3+ {[%emt 0:00:04]} 67. Kxg3 {[%emt 0:00:
03]} a4 {[%emt 0:00:03]} 68. Be6 {[%emt 0:00:10]} a3 {[%emt 0:00:05]} 69. Kf3 {
[%emt 0:00:04]} Kg6 {[%emt 0:00:06]} 70. Ke2 {[%emt 0:00:01]} Bf6 {[%emt 0:00:
04]} 71. Kd3 {[%emt 0:00:02]} Bb2 {[%emt 0:00:02]} 72. Kc2 {[%emt 0:00:00]} Kg7
{[%emt 0:00:03]} 73. Kb3 {[%emt 0:00:02]} Kf8 {[%emt 0:00:02]} 74. Bc4 {[%emt
0:00:05]} Ke7 {[%emt 0:00:02]} 75. Nc5 {[%emt 0:00:17]} Be5 {[%emt 0:00:17]}
76. Ka4 {[%emt 0:00:06]} Bd6 {[%emt 0:00:05]} 77. Nb3 {[%emt 0:00:12]} Kd7 {
[%emt 0:00:04]} 78. Nd4 {[%emt 0:00:04]} Bc5 {[%emt 0:00:07]} 79. Nb5 {[%emt 0:
00:06]} Bf8 {[%emt 0:00:04]} 80. Ka5 {[%emt 0:00:03]} Kc6 {[%emt 0:00:04]} 81.
Bf7 {[%emt 0:00:11]} Be7 {[%emt 0:00:09]} 82. Nd4+ {[%emt 0:00:39]} Kd7 {[%emt
0:00:10]} 83. Kb5 {[%emt 0:00:05]} Bf8 {[%emt 0:00:05]} 84. Ba2 {[%emt 0:00:07]
} Kd6 {[%emt 0:00:06]} 85. Kc4 {[%emt 0:00:05]} Ke5 {[%emt 0:00:13]} 86. Kd3 {
[%emt 0:00:20]} Kd6 {[%emt 0:00:28]} 87. Ke4 {[%emt 0:00:13]} Kd7 {[%emt 0:00:
20]} 88. Kd5 {[%emt 0:00:05]} Be7 {[%emt 0:00:12]} 89. Nf5 {[%emt 0:00:23]} Bf8
{[%emt 0:00:06]} 90. Bb1 {[%emt 0:00:08]} Be7 {[%emt 0:00:06]} 91. Nd4 {[%emt
0:00:05]} Bf8 {[%emt 0:00:04]} 92. Nb5 {[%emt 0:00:11]} Bb4 {[%emt 0:00:18]}
93. Nd4 {[%emt 0:00:17]} Be7 {[%emt 0:00:16]} 94. Bf5+ {[%emt 0:00:11]} Kc7 {
[%emt 0:00:06]} 95. Nb5+ {[%emt 0:00:06]} Kb6 {[%emt 0:00:06]} 96. Nc3 {[%emt
0:00:02]} Bf8 {[%emt 0:00:27]} 97. Kc4 {[%emt 0:00:36]} Kc6 {[%emt 0:00:15]}
98. Be4+ {[%emt 0:00:06]} Kd6 {[%emt 0:00:03]} 99. Bd5 {[%emt 0:00:05]} Ke5 {
[%emt 0:00:13]} 100. Bg8 {[%emt 0:00:21]} Be7 {[%emt 0:00:18]} 101. Kd3 {[%emt
0:00:16]} Bf8 {[%emt 0:00:08]} 102. Na4 {[%emt 0:00:20]} Be7 {[%emt 0:00:13]}
103. Nb6 {[%emt 0:00:03]} Bc5 {[%emt 0:00:34]} 104. Nd7+ {[%emt 0:00:15]} Kd6 {
[%emt 0:00:01]} 105. Nf6 {[%emt 0:00:04]} Kc7 {[%emt 0:00:20]} 106. Ke4 {[%emt
0:00:13]} Be7 {[%emt 0:00:07]} 107. Nd5+ {[%emt 0:00:10]} Kd6 {[%emt 0:00:07]}
108. Nc3 {[%emt 0:00:12]} Kc5 {[%emt 0:00:12]} 109. Bd5 {[%emt 0:00:17]} Bf8 {
[%emt 0:00:10]} 110. Na2 {[%emt 0:00:23]} Bg7 {[%emt 0:00:06]} 111. Bb3 {[%emt
0:00:08]} Bf6 {[%emt 0:00:08]} 112. Kf5 {[%emt 0:00:05]} Bg7 {[%emt 0:00:05]}
113. Ke6 {[%emt 0:00:04]} Bh8 {[%emt 0:00:06]} 114. Kd7 {[%emt 0:00:11]} Bg7 {
[%emt 0:00:21]} 115. Kc7 {[%emt 0:00:09]} Bf6 {[%emt 0:00:03]} 116. Kb7 {[%emt
0:00:01]} Bg7 {[%emt 0:00:02]} 117. Ka6 {[%emt 0:00:00]} Bf8 {[%emt 0:00:06]}
118. Ka5 {[%emt 0:00:02]} Kd4 {[%emt 0:00:07]} 119. Ka4 {[%emt 0:00:03]} Kd3 {
[%emt 0:00:09]} 120. Kb5 {[%emt 0:00:20]} Kd4 {[%emt 0:00:08]} 121. Bc4 {[%emt
0:00:05]} Be7 {[%emt 0:00:10]} 122. Bf1 {[%emt 0:00:22]} Bf8 {[%emt 0:00:08]}
123. Ka4 {[%emt 0:00:03]} Be7 {[%emt 0:00:03]} 124. Kb3 {[%emt 0:00:01]} Bf8 {
[%emt 0:00:02]} 125. Nc3 {[%emt 0:00:10]} Be7 {[%emt 0:00:08]} 126. Nb5+ {
[%emt 0:00:04]} Ke3 {[%emt 0:00:04]} 127. Nc7 {[%emt 0:00:16]} Kf2 {[%emt 0:00:
11]} 128. Bc4 {[%emt 0:00:05]} Bf8 {[%emt 0:00:51]} 129. Nd5 {[%emt 0:00:02]}
Kf3 {[%emt 0:00:09]} 130. Bd3 {[%emt 0:00:09]} Bd6 {[%emt 0:00:06]} 131. Bb1 {
[%emt 0:00:08]} Bf8 {[%emt 0:00:12]} 132. Kc3 {[%emt 0:00:05]} Bg7+ {[%emt 0:
00:13]} 133. Kd3 {[%emt 0:00:03]} Bh8 {[%emt 0:00:11]} 134. Ba2 {[%emt 0:00:12]
} Bg7 {[%emt 0:00:05]} 135. Ne7 {[%emt 0:00:19]} Bf8 {[%emt 0:00:13]} 136. Ng6
{[%emt 0:00:04]} Bg7 {[%emt 0:00:11]} 137. Bd5+ {[%emt 0:00:05]} Kg4 {[%emt 0:
00:01]} 138. Ke4 {[%emt 0:00:19]} Kg5 {[%emt 0:00:04]} 139. Ne7 {[%emt 0:00:07]
} Bb2 {[%emt 0:00:17]} 140. Nc6 {[%emt 0:00:20]} Kf6 {[%emt 0:00:13]} 141. Nb4
{[%emt 0:00:08]} Bc3 {[%emt 0:00:06]} 142. Nc2 {[%emt 0:00:10]} Bb2 {[%emt 0:
00:06]} 143. Ne3 {[%emt 0:00:02]} Bc3 {[%emt 0:00:11]} 144. Bb3 {[%emt 0:00:03]
} Bb2 {[%emt 0:00:08]} 1/2-1/2

[Event "16th EWICC 2015"]
[Site "Kutaisi"]
[Date "2015.06.03"]
[Round "9"]
[White "Khomeriki, Nino"]
[Black "Schleining, Zoya"]
[Result "1/2-1/2"]
[ECO "A05"]
[WhiteElo "2228"]
[BlackElo "2375"]
[Annotator "Robot 11"]
[PlyCount "98"]
[EventDate "2015.??.??"]
[EventCountry "GEO"]
[TimeControl "900+10"]

1. Nf3 {[%emt 0:00:03]} Nf6 {[%emt 0:00:01]} 2. g3 {[%emt 0:00:02]} g6 {[%emt
0:00:05]} 3. b3 {[%emt 0:00:05]} Bg7 {[%emt 0:00:03]} 4. Bb2 {[%emt 0:00:01]}
c5 {[%emt 0:00:11]} 5. c4 {[%emt 0:00:22]} O-O {[%emt 0:00:06]} 6. Bg2 {[%emt
0:00:02]} d6 {[%emt 0:00:11]} 7. O-O {[%emt 0:00:38]} e5 {[%emt 0:00:10]} 8. d3
{[%emt 0:01:11]} Nc6 {[%emt 0:00:05]} 9. Nc3 {[%emt 0:00:11]} h6 {[%emt 0:00:
25]} 10. Ne1 {[%emt 0:07:30]} Be6 {[%emt 0:01:17]} 11. Nd5 {[%emt 0:00:07]} Qd7
{[%emt 0:00:37]} 12. Nc2 {[%emt 0:00:22]} Bh3 {[%emt 0:00:59]} 13. e4 {[%emt 0:
01:44]} Nxd5 {[%emt 0:00:35]} 14. cxd5 {[%emt 0:00:27]} Nd4 {[%emt 0:01:09]}
15. Ne3 {[%emt 0:00:16]} Bxg2 {[%emt 0:00:19]} 16. Nxg2 {[%emt 0:00:23]} f5 {
[%emt 0:01:04]} 17. Bxd4 {[%emt 0:00:04]} cxd4 {[%emt 0:00:09]} 18. Nh4 {[%emt
0:00:59]} fxe4 {[%emt 0:01:15]} 19. dxe4 {[%emt 0:00:10]} Kh7 {[%emt 0:00:58]}
20. Rc1 {[%emt 0:00:48]} Rf7 {[%emt 0:00:25]} 21. Kg2 {[%emt 0:01:55]} Raf8 {
[%emt 0:00:09]} 22. h3 {[%emt 0:00:07]} Bf6 {[%emt 0:00:35]} 23. Qg4 {[%emt 0:
00:44]} Qxg4 {[%emt 0:00:18]} 24. hxg4 {[%emt 0:00:01]} Bg5 {[%emt 0:01:16]}
25. Rc4 {[%emt 0:00:01]} Be3 {[%emt 0:02:09]} 26. Nf5 {[%emt 0:00:52]} gxf5 {
[%emt 0:00:17]} 27. fxe3 {[%emt 0:00:01]} fxe4 {[%emt 0:00:11]} 28. Rxf7+ {
[%emt 0:00:05]} Rxf7 {[%emt 0:00:08]} 29. exd4 {[%emt 0:00:01]} exd4 {[%emt 0:
00:17]} 30. Rxd4 {[%emt 0:00:01]} Re7 {[%emt 0:00:01]} 31. Kf2 {[%emt 0:00:44]}
Kg6 {[%emt 0:00:03]} 32. Rc4 {[%emt 0:00:08]} Kg5 {[%emt 0:00:17]} 33. Rc8 {
[%emt 0:00:06]} Kxg4 {[%emt 0:00:08]} 34. Rg8+ {[%emt 0:00:17]} Kf5 {[%emt 0:
00:06]} 35. Ke3 {[%emt 0:00:02]} Ke5 {[%emt 0:00:11]} 36. Rg6 {[%emt 0:00:12]}
Kxd5 {[%emt 0:00:08]} 37. Rxh6 {[%emt 0:00:01]} Kc5 {[%emt 0:00:09]} 38. b4+ {
[%emt 0:00:25]} Kxb4 {[%emt 0:00:37]} 39. Rxd6 {[%emt 0:00:01]} Ka3 {[%emt 0:
00:10]} 40. Rd2 {[%emt 0:00:10]} b5 {[%emt 0:00:09]} 41. g4 {[%emt 0:00:02]} b4
{[%emt 0:00:09]} 42. g5 {[%emt 0:00:05]} a5 {[%emt 0:00:15]} 43. g6 {[%emt 0:
00:13]} a4 {[%emt 0:00:46]} 44. Rg2 {[%emt 0:00:01]} Rg7 {[%emt 0:02:45]} 45.
Kxe4 {[%emt 0:00:01]} b3 {[%emt 0:00:18]} 46. axb3 {[%emt 0:00:04]} axb3 {
[%emt 0:00:02]} 47. Kf5 {[%emt 0:00:01]} b2 {[%emt 0:00:14]} 48. Rxb2 {[%emt 0:
00:06]} Kxb2 {[%emt 0:00:02]} 49. Kf6 {[%emt 0:00:01]} Rxg6+ {[%emt 0:00:00]}
1/2-1/2

[Event "16th EWICC 2015"]
[Site "Kutaisi"]
[Date "2015.06.03"]
[Round "9"]
[White "Khurtsidze, Nino"]
[Black "Mammadzada, Gunay"]
[Result "1-0"]
[ECO "A04"]
[WhiteElo "2451"]
[BlackElo "2336"]
[Annotator "Robot 11"]
[PlyCount "105"]
[EventDate "2015.??.??"]
[EventCountry "GEO"]
[TimeControl "900+10"]

1. Nf3 {[%emt 0:00:03]} c5 {[%emt 0:00:07]} 2. e3 {[%emt 0:00:01]} Nf6 {[%emt
0:00:43]} 3. c4 {[%emt 0:00:13]} b6 {[%emt 0:00:19]} 4. d4 {[%emt 0:00:04]}
cxd4 {[%emt 0:00:02]} 5. exd4 {[%emt 0:00:02]} e6 {[%emt 0:00:01]} 6. Nc3 {
[%emt 0:00:06]} Bb7 {[%emt 0:00:06]} 7. Bd3 {[%emt 0:00:04]} d5 {[%emt 0:00:15]
} 8. O-O {[%emt 0:00:26]} Be7 {[%emt 0:00:06]} 9. cxd5 {[%emt 0:00:22]} Nxd5 {
[%emt 0:00:19]} 10. Ne5 {[%emt 0:00:20]} O-O {[%emt 0:00:41]} 11. Qg4 {[%emt 0:
00:50]} f5 {[%emt 0:00:25]} 12. Qe2 {[%emt 0:00:37]} Bf6 {[%emt 0:04:08]} 13.
Bc4 {[%emt 0:00:27]} Re8 {[%emt 0:00:41]} 14. Rd1 {[%emt 0:03:52]} Nc6 {[%emt
0:02:05]} 15. Bxd5 {[%emt 0:01:07]} exd5 {[%emt 0:00:07]} 16. Nxc6 {[%emt 0:00:
11]} Bxc6 {[%emt 0:00:07]} 17. Qd3 {[%emt 0:00:10]} Qd7 {[%emt 0:00:20]} 18.
Bf4 {[%emt 0:00:11]} Re7 {[%emt 0:00:28]} 19. Qg3 {[%emt 0:00:19]} Rae8 {[%emt
0:00:24]} 20. Bg5 {[%emt 0:00:18]} Qe6 {[%emt 0:01:03]} 21. h3 {[%emt 0:00:19]}
Bxg5 {[%emt 0:00:21]} 22. Qxg5 {[%emt 0:00:01]} h6 {[%emt 0:00:01]} 23. Qd2 {
[%emt 0:00:28]} Qf6 {[%emt 0:00:51]} 24. b4 {[%emt 0:01:51]} f4 {[%emt 0:00:52]
} 25. Re1 {[%emt 0:00:33]} f3 {[%emt 0:00:33]} 26. g3 {[%emt 0:00:27]} Qg5 {
[%emt 0:00:43]} 27. Red1 {[%emt 0:00:27]} Qh5 {[%emt 0:00:37]} 28. Qf4 {[%emt
0:00:44]} g5 {[%emt 0:02:04]} 29. Qg4 {[%emt 0:00:35]} Qxg4 {[%emt 0:00:02]}
30. hxg4 {[%emt 0:00:02]} h5 {[%emt 0:00:03]} 31. gxh5 {[%emt 0:00:28]} g4 {
[%emt 0:00:01]} 32. Kf1 {[%emt 0:00:09]} Kg7 {[%emt 0:00:53]} 33. Re1 {[%emt 0:
00:05]} Bb7 {[%emt 0:00:08]} 34. Rxe7+ {[%emt 0:00:13]} Rxe7 {[%emt 0:00:00]}
35. Re1 {[%emt 0:00:01]} Rc7 {[%emt 0:00:11]} 36. Re3 {[%emt 0:00:37]} Kh6 {
[%emt 0:00:17]} 37. a3 {[%emt 0:00:50]} Kxh5 {[%emt 0:00:03]} 38. Ke1 {[%emt 0:
00:01]} Rc4 {[%emt 0:00:11]} 39. Rd3 {[%emt 0:00:16]} Bc8 {[%emt 0:00:40]} 40.
Nxd5 {[%emt 0:00:08]} Bf5 {[%emt 0:00:02]} 41. Rd1 {[%emt 0:00:53]} Rc2 {[%emt
0:00:18]} 42. Ne3 {[%emt 0:00:10]} Re2+ {[%emt 0:00:01]} 43. Kf1 {[%emt 0:00:
01]} Bd7 {[%emt 0:00:02]} 44. d5 {[%emt 0:00:22]} Ra2 {[%emt 0:00:20]} 45. d6 {
[%emt 0:00:33]} Kg6 {[%emt 0:00:24]} 46. Nc4 {[%emt 0:00:52]} Kf6 {[%emt 0:00:
03]} 47. Kg1 b5 48. Nd2 {[%emt 0:00:34]} Rxa3 {[%emt 0:00:29]} 49. Ne4+ {[%emt
0:00:01]} Kf7 {[%emt 0:00:10]} 50. Nc5 {[%emt 0:00:03]} Ke8 {[%emt 0:00:09]}
51. Re1+ {[%emt 0:00:05]} Kd8 {[%emt 0:00:02]} 52. Re7 {[%emt 0:00:02]} Bc6 {
[%emt 0:00:04]} 53. Ne6+ {[%emt 0:00:03]} 1-0

[Event "16th EWICC 2015"]
[Site "Kutaisi"]
[Date "2015.06.03"]
[Round "9"]
[White "Mammadova, Gulnar"]
[Black "Lomineishvili, Maia"]
[Result "0-1"]
[ECO "B25"]
[WhiteElo "2293"]
[BlackElo "2364"]
[Annotator "Robot 11"]
[PlyCount "78"]
[EventDate "2015.??.??"]
[EventCountry "GEO"]
[TimeControl "900+10"]

1. e4 {[%emt 0:00:02]} c5 {[%emt 0:00:01]} 2. Nc3 {[%emt 0:00:11]} Nc6 {[%emt
0:00:03]} 3. g3 {[%emt 0:00:04]} g6 {[%emt 0:00:03]} 4. Bg2 {[%emt 0:00:02]}
Bg7 {[%emt 0:00:01]} 5. d3 {[%emt 0:00:03]} d6 {[%emt 0:00:08]} 6. Nge2 {[%emt
0:00:07]} e6 {[%emt 0:00:30]} 7. O-O {[%emt 0:00:07]} Nge7 {[%emt 0:00:02]} 8.
Be3 {[%emt 0:00:09]} Nd4 {[%emt 0:00:41]} 9. Rb1 {[%emt 0:01:31]} O-O {[%emt 0:
00:25]} 10. a3 {[%emt 0:00:34]} Rb8 {[%emt 0:01:22]} 11. b4 {[%emt 0:00:41]} b6
{[%emt 0:00:18]} 12. Qd2 {[%emt 0:01:17]} Bb7 {[%emt 0:00:10]} 13. h4 {[%emt 0:
01:13]} f5 {[%emt 0:00:16]} 14. Bg5 {[%emt 0:00:55]} Qd7 {[%emt 0:00:59]} 15.
Nxd4 {[%emt 0:00:37]} cxd4 {[%emt 0:00:18]} 16. Ne2 {[%emt 0:00:01]} Rf7 {
[%emt 0:01:32]} 17. c3 {[%emt 0:01:19]} dxc3 {[%emt 0:01:02]} 18. Nxc3 {[%emt
0:00:02]} Nc6 {[%emt 0:00:04]} 19. Ne2 {[%emt 0:01:04]} Ne5 {[%emt 0:01:23]}
20. d4 {[%emt 0:00:34]} Nc4 {[%emt 0:00:02]} 21. Qd3 {[%emt 0:00:22]} b5 {
[%emt 0:00:52]} 22. h5 {[%emt 0:00:48]} fxe4 {[%emt 0:01:43]} 23. Bxe4 {[%emt
0:00:13]} Bxe4 {[%emt 0:00:04]} 24. Qxe4 {[%emt 0:00:02]} Rf5 {[%emt 0:00:50]}
25. Bc1 {[%emt 0:01:26]} d5 {[%emt 0:00:02]} 26. Qd3 {[%emt 0:00:17]} e5 {
[%emt 0:00:59]} 27. g4 {[%emt 0:00:21]} Rf6 {[%emt 0:00:52]} 28. Bg5 {[%emt 0:
00:31]} Qxg4+ {[%emt 0:00:11]} 29. Qg3 {[%emt 0:00:03]} Qxe2 {[%emt 0:00:42]}
30. Bxf6 Bxf6 {[%emt 0:00:01]} 31. hxg6 {[%emt 0:00:13]} Kh8 {[%emt 0:00:42]}
32. gxh7 {[%emt 0:00:50]} Nd2 {[%emt 0:00:11]} 33. Qg6 {[%emt 0:01:26]} Rf8 {
[%emt 0:00:46]} 34. Rbc1 {[%emt 0:01:01]} Bh4 {[%emt 0:00:28]} 35. Qg2 {[%emt
0:00:53]} Nxf1 {[%emt 0:00:10]} 36. Rxf1 {[%emt 0:00:24]} Bxf2+ {[%emt 0:00:12]
} 37. Rxf2 {[%emt 0:00:06]} Qxf2+ {[%emt 0:00:01]} 38. Qxf2 {[%emt 0:00:01]}
Rxf2 {[%emt 0:00:01]} 39. Kxf2 {[%emt 0:00:02]} e4 {[%emt 0:00:00]} 0-1

[Event "16th EWICC 2015"]
[Site "Kutaisi"]
[Date "2015.06.03"]
[Round "9"]
[White "Petrenko, Svetlana"]
[Black "Dordzhieva, Dinara"]
[Result "1-0"]
[ECO "A81"]
[WhiteElo "2207"]
[BlackElo "2242"]
[Annotator "Robot 11"]
[PlyCount "95"]
[EventDate "2015.??.??"]
[EventCountry "GEO"]
[TimeControl "900+10"]

1. g3 f5 2. d4 Nf6 3. Bg2 g6 4. c4 Bg7 5. Nc3 d6 6. e3 O-O 7. Nge2 c6 8. f4 e5
9. O-O Na6 10. a3 e4 11. Qc2 Be6 12. Nd1 Qe8 13. b3 h6 14. Nf2 b5 15. Bd2 Rb8
16. Rfc1 Qf7 17. Bf1 Rfc8 18. h3 Kh7 19. Kh2 Rb7 20. Ng1 Nc7 21. cxb5 Bxb3 22.
Qxc6 Rb6 23. Qc3 Be6 24. Qa5 Ncd5 25. Rxc8 Bxc8 26. Rc1 Be6 27. Ne2 g5 28. Nc3
gxf4 29. gxf4 Qh5 30. Nxd5 Nxd5 31. Nh1 Rb7 32. Re1 Bf6 33. Be2 Qh4 34. Rg1
Bxd4 35. exd4 e3 36. Be1 Qxf4+ 37. Bg3 Qxd4 38. Rd1 Qf6 39. Bf3 f4 40. Be4+ Kg7
41. Bxd5 fxg3+ 42. Nxg3 Qf2+ 43. Bg2 e2 44. Re1 Rf7 45. Rxe2 Qf4 46. Rxe6 h5
47. Qc3+ Kf8 48. Qh8# 1-0

[Event "16th EWICC 2015"]
[Site "Kutaisi"]
[Date "2015.06.03"]
[Round "9"]
[White "Stefanova, Antoaneta"]
[Black "Kosteniuk, Alexandra"]
[Result "0-1"]
[ECO "A06"]
[WhiteElo "2512"]
[BlackElo "2530"]
[Annotator "Robot 11"]
[PlyCount "120"]
[EventDate "2015.??.??"]
[EventCountry "GEO"]
[TimeControl "900+10"]

1. Nf3 {[%emt 0:00:02]} d5 {[%emt 0:00:01]} 2. g3 {[%emt 0:00:03]} c6 {[%emt 0:
00:02]} 3. Bg2 {[%emt 0:00:06]} Bf5 {[%emt 0:00:04]} 4. O-O {[%emt 0:01:13]} e6
{[%emt 0:00:17]} 5. d3 {[%emt 0:00:33]} Nf6 {[%emt 0:00:06]} 6. Nh4 {[%emt 0:
02:01]} Bg4 {[%emt 0:00:02]} 7. h3 {[%emt 0:00:02]} Bh5 {[%emt 0:00:02]} 8. Qe1
{[%emt 0:00:01]} Be7 {[%emt 0:00:55]} 9. f4 {[%emt 0:00:01]} Bg6 {[%emt 0:03:
48]} 10. Nd2 {[%emt 0:03:20]} Qb6+ {[%emt 0:00:22]} 11. Kh1 {[%emt 0:00:51]}
Nfd7 {[%emt 0:00:56]} 12. Ndf3 {[%emt 0:00:16]} f6 {[%emt 0:02:43]} 13. Nxg6 {
[%emt 0:00:21]} hxg6 {[%emt 0:00:01]} 14. e4 {[%emt 0:00:03]} Na6 {[%emt 0:00:
38]} 15. a3 {[%emt 0:02:14]} Qc5 {[%emt 0:02:02]} 16. c3 {[%emt 0:02:40]} dxe4
{[%emt 0:00:01]} 17. Qxe4 {[%emt 0:00:13]} Qf5 {[%emt 0:00:08]} 18. Qxf5 {
[%emt 0:00:18]} gxf5 {[%emt 0:00:07]} 19. d4 {[%emt 0:00:13]} Nb6 {[%emt 0:00:
13]} 20. Re1 {[%emt 0:00:18]} Kf7 {[%emt 0:00:03]} 21. b4 {[%emt 0:00:09]} Nc4
{[%emt 0:00:06]} 22. Nd2 {[%emt 0:00:13]} Nxd2 {[%emt 0:00:34]} 23. Bxd2 {
[%emt 0:00:02]} Nc7 {[%emt 0:00:01]} 24. c4 {[%emt 0:00:13]} g5 {[%emt 0:00:15]
} 25. Rab1 {[%emt 0:00:27]} Rad8 {[%emt 0:00:15]} 26. Be3 {[%emt 0:00:08]} Bd6
{[%emt 0:00:54]} 27. Rf1 Kg6 28. a4 {[%emt 0:00:40]} a6 {[%emt 0:01:20]} 29.
Kh2 {[%emt 0:00:24]} gxf4 {[%emt 0:00:16]} 30. gxf4 {[%emt 0:00:03]} Rh4 {
[%emt 0:00:19]} 31. b5 {[%emt 0:00:15]} axb5 {[%emt 0:00:03]} 32. axb5 {[%emt
0:00:01]} cxb5 {[%emt 0:00:03]} 33. c5 {[%emt 0:00:06]} Be7 {[%emt 0:00:19]}
34. Bxb7 {[%emt 0:00:07]} Rdh8 {[%emt 0:00:39]} 35. Rf3 {[%emt 0:00:04]} Kf7 {
[%emt 0:00:49]} 36. Bc6 {[%emt 0:00:33]} Rb8 {[%emt 0:00:05]} 37. Bf2 {[%emt 0:
00:09]} Rh6 {[%emt 0:01:03]} 38. Rfb3 {[%emt 0:00:17]} Rbh8 {[%emt 0:00:02]}
39. h4 {[%emt 0:00:39]} Rd8 {[%emt 0:00:21]} 40. Bxb5 {[%emt 0:00:10]} Nxb5 {
[%emt 0:00:01]} 41. Rxb5 e5 42. Rb7 {[%emt 0:00:49]} Rhh8 {[%emt 0:00:01]} 43.
Re1 {[%emt 0:00:31]} e4 {[%emt 0:00:56]} 44. Kh3 {[%emt 0:00:34]} Ke6 {[%emt 0:
00:18]} 45. Ra1 {[%emt 0:00:02]} Rhe8 {[%emt 0:00:17]} 46. Raa7 {[%emt 0:00:10]
} Bf8 {[%emt 0:00:12]} 47. Be3 {[%emt 0:00:11]} Kd5 {[%emt 0:00:15]} 48. Kg3 {
[%emt 0:00:21]} Rb8 {[%emt 0:00:31]} 49. h5 {[%emt 0:00:25]} Bh6 {[%emt 0:00:
18]} 50. Kf2 {[%emt 0:00:10]} Rxb7 {[%emt 0:00:10]} 51. Rxb7 {[%emt 0:00:01]}
Ra8 {[%emt 0:00:00]} 52. Rd7+ {[%emt 0:00:08]} Kc4 {[%emt 0:00:10]} 53. c6 {
[%emt 0:00:03]} Ra2+ {[%emt 0:00:03]} 54. Kf1 {[%emt 0:00:06]} Kd3 {[%emt 0:00:
03]} 55. Bf2 {[%emt 0:00:38]} Bxf4 {[%emt 0:00:04]} 56. d5 {[%emt 0:00:09]} e3
{[%emt 0:00:06]} 57. Bxe3 {[%emt 0:00:14]} Kxe3 {[%emt 0:00:01]} 58. c7 {[%emt
0:00:16]} Kf3 {[%emt 0:00:04]} 59. Re7 {[%emt 0:00:05]} Bxc7 {[%emt 0:00:44]}
60. h6 {[%emt 0:00:12]} Bg3 {[%emt 0:00:03]} 0-1